[Event "Early-Titled-Tuesday-Blitz-February-20-2024"]
[Site "Chess.com"]
[Date "2024.02.20"]
[Round "7"]
[White "Alexchess1984"]
[Black "RobertoJBM"]
[Result "1-0"]
[WhiteElo "2661"]
[BlackElo "2814"]
[TimeControl "180+1"]
[EndTime "9:17:44 PST"]
[Termination "Alexchess1984 won by resignation"]

1. e4 {[%clk 0:03:00.9]} 1... c6 {[%clk 0:02:58.8]} 2. d4 {[%clk 0:02:59.6]}
2... d5 {[%clk 0:02:59.1]} 3. exd5 {[%clk 0:02:59.7]} 3... cxd5 {[%clk 0:02:59]}
4. c4 {[%clk 0:03:00.2]} 4... Nf6 {[%clk 0:02:59]} 5. Nc3 {[%clk 0:02:57.8]}
5... e6 {[%clk 0:02:58.9]} 6. Nf3 {[%clk 0:02:55.3]} 6... Be7 {[%clk 0:02:54.9]}
7. cxd5 {[%clk 0:02:54.4]} 7... Nxd5 {[%clk 0:02:55]} 8. Bd3 {[%clk 0:02:54]}
8... O-O {[%clk 0:02:53.9]} 9. O-O {[%clk 0:02:54.1]} 9... Nc6 {[%clk
0:02:52.9]} 10. Re1 {[%clk 0:02:52.5]} 10... Nf6 {[%clk 0:02:51.3]} 11. a3
{[%clk 0:02:51.1]} 11... b6 {[%clk 0:02:47.1]} 12. Bg5 {[%clk 0:02:49.8]} 12...
Bb7 {[%clk 0:02:46.5]} 13. Bc2 {[%clk 0:02:48.6]} 13... Rc8 {[%clk 0:02:44.3]}
14. Qd3 {[%clk 0:02:44.3]} 14... g6 {[%clk 0:02:44.2]} 15. Rad1 {[%clk
0:02:40.8]} 15... Nd5 {[%clk 0:02:41.7]} 16. Bh6 {[%clk 0:02:36.4]} 16... Re8
{[%clk 0:02:39.6]} 17. Bb3 {[%clk 0:02:34.9]} 17... Na5 {[%clk 0:02:31.2]} 18.
Ba2 {[%clk 0:02:33.5]} 18... Nxc3 {[%clk 0:02:14.9]} 19. bxc3 {[%clk 0:02:33.9]}
19... Bf6 {[%clk 0:02:14.8]} 20. Ne5 {[%clk 0:02:16.7]} 20... Bg5 {[%clk
0:02:03.1]} 21. Qh3 {[%clk 0:02:09.7]} 21... Bxh6 {[%clk 0:01:59.6]} 22. Qxh6
{[%clk 0:02:06.8]} 22... Qf6 {[%clk 0:01:52.8]} 23. Ng4 {[%clk 0:01:58.1]} 23...
Qg7 {[%clk 0:01:52.3]} 24. Qg5 {[%clk 0:01:55.6]} 24... Red8 {[%clk 0:01:41.6]}
25. Rd3 {[%clk 0:01:40.8]} 25... Bd5 {[%clk 0:01:26.9]} 26. Bxd5 {[%clk
0:01:38.7]} 26... exd5 {[%clk 0:01:23.3]} 27. Rde3 {[%clk 0:01:36.9]} 27... Nc6
{[%clk 0:01:17.9]} 28. Nf6+ {[%clk 0:01:29]} 28... Kh8 {[%clk 0:01:13.7]} 29.
Rh3 {[%clk 0:01:26.2]} 29... h5 {[%clk 0:01:12.6]} 30. Nxh5 {[%clk 0:01:25.6]}
30... gxh5 {[%clk 0:01:00.2]} 31. Qxh5+ {[%clk 0:01:25.2]} 31... Kg8 {[%clk
0:00:59.5]} 32. Rg3 {[%clk 0:01:25.4]} 1-0

[Event "Early-Titled-Tuesday-Blitz-February-20-2024"]
[Site "Chess.com"]
[Date "2024.02.20"]
[Round "7"]
[White "Dinamo3"]
[Black "pauliukevicius"]
[Result "0-1"]
[WhiteElo "2520"]
[BlackElo "2364"]
[TimeControl "180+1"]
[EndTime "9:17:49 PST"]
[Termination "pauliukevicius won by checkmate"]

1. c4 {[%clk 0:03:00.2]} 1... Nf6 {[%clk 0:02:59.8]} 2. g3 {[%clk 0:02:56.9]}
2... c6 {[%clk 0:02:58.8]} 3. Bg2 {[%clk 0:02:41.7]} 3... d5 {[%clk 0:02:59]} 4.
Nf3 {[%clk 0:02:42.4]} 4... dxc4 {[%clk 0:02:56.9]} 5. a4 {[%clk 0:02:41.7]}
5... Nbd7 {[%clk 0:02:55.3]} 6. Qc2 {[%clk 0:02:39.6]} 6... g6 {[%clk
0:02:44.3]} 7. Qxc4 {[%clk 0:02:39.2]} 7... Bg7 {[%clk 0:02:44.9]} 8. O-O {[%clk
0:02:39.5]} 8... O-O {[%clk 0:02:45.5]} 9. Qc2 {[%clk 0:02:32.5]} 9... e5 {[%clk
0:02:45.1]} 10. Nc3 {[%clk 0:02:31.9]} 10... Re8 {[%clk 0:02:45.1]} 11. d3
{[%clk 0:02:32.4]} 11... Nb6 {[%clk 0:02:44.5]} 12. a5 {[%clk 0:02:31.1]} 12...
Nbd5 {[%clk 0:02:44.2]} 13. Bd2 {[%clk 0:02:27]} 13... h6 {[%clk 0:02:41.8]} 14.
Na4 {[%clk 0:02:21.8]} 14... e4 {[%clk 0:02:39.1]} 15. dxe4 {[%clk 0:02:16.8]}
15... Nxe4 {[%clk 0:02:40]} 16. Nc3 {[%clk 0:01:40.7]} 16... Nb4 {[%clk
0:02:37.2]} 17. Qd1 {[%clk 0:01:33.6]} 17... Nxd2 {[%clk 0:02:32.4]} 18. Nxd2
{[%clk 0:01:33.3]} 18... Nd5 {[%clk 0:02:31.9]} 19. Nxd5 {[%clk 0:01:32.5]}
19... cxd5 {[%clk 0:02:32.8]} 20. Ra2 {[%clk 0:01:16.6]} 20... Be6 {[%clk
0:02:31.6]} 21. b3 {[%clk 0:01:17.1]} 21... Bc3 {[%clk 0:02:29.3]} 22. a6 {[%clk
0:00:56]} 22... bxa6 {[%clk 0:02:24.2]} 23. Rxa6 {[%clk 0:00:56.9]} 23... Qc8
{[%clk 0:02:22.8]} 24. Ra4 {[%clk 0:00:53.4]} 24... Qc5 {[%clk 0:02:20.3]} 25.
Nb1 {[%clk 0:00:32.3]} 25... Bg7 {[%clk 0:02:19.3]} 26. e3 {[%clk 0:00:32.5]}
26... Rab8 {[%clk 0:02:17.3]} 27. Nd2 {[%clk 0:00:22.7]} 27... Qb6 {[%clk
0:02:13.7]} 28. Qe2 {[%clk 0:00:19.8]} 28... Rec8 {[%clk 0:02:13.4]} 29. Qa6
{[%clk 0:00:17.7]} 29... Rc2 {[%clk 0:02:09.5]} 30. Qxb6 {[%clk 0:00:16.3]}
30... axb6 {[%clk 0:02:08.1]} 31. Rd1 {[%clk 0:00:16.9]} 31... b5 {[%clk
0:02:07.1]} 32. Ra7 {[%clk 0:00:15.3]} 32... b4 {[%clk 0:02:06.7]} 33. Nf3
{[%clk 0:00:10.9]} 33... Rb2 {[%clk 0:02:06.9]} 34. Nd4 {[%clk 0:00:11.1]} 34...
Bxd4 {[%clk 0:02:06]} 35. Rxd4 {[%clk 0:00:12]} 35... Rb1+ {[%clk 0:02:06.5]}
36. Bf1 {[%clk 0:00:12.1]} 36... Bh3 {[%clk 0:02:06.6]} 37. f3 {[%clk
0:00:02.7]} 37... Rxf1# {[%clk 0:02:06.2]} 0-1

[Event "Early-Titled-Tuesday-Blitz-February-20-2024"]
[Site "Chess.com"]
[Date "2024.02.20"]
[Round "7"]
[White "Arystanner"]
[Black "DeArron_Fox"]
[Result "1-0"]
[WhiteElo "2757"]
[BlackElo "2517"]
[TimeControl "180+1"]
[EndTime "9:17:52 PST"]
[Termination "Arystanner won on time"]

1. d4 {[%clk 0:03:00.9]} 1... d5 {[%clk 0:02:54.5]} 2. c4 {[%clk 0:03:01.4]}
2... e6 {[%clk 0:02:50.3]} 3. Nf3 {[%clk 0:03:00.5]} 3... Nf6 {[%clk 0:02:50.2]}
4. Nc3 {[%clk 0:03:00.8]} 4... Be7 {[%clk 0:02:50.7]} 5. Bf4 {[%clk 0:02:59.3]}
5... O-O {[%clk 0:02:50.7]} 6. a3 {[%clk 0:02:59.8]} 6... b6 {[%clk 0:02:48.2]}
7. cxd5 {[%clk 0:02:57.3]} 7... Nxd5 {[%clk 0:02:48]} 8. Nxd5 {[%clk 0:02:57.1]}
8... exd5 {[%clk 0:02:48.9]} 9. e3 {[%clk 0:02:56.9]} 9... Bb7 {[%clk 0:02:49]}
10. Bd3 {[%clk 0:02:57.3]} 10... c5 {[%clk 0:02:46.1]} 11. O-O {[%clk
0:02:57.5]} 11... Nd7 {[%clk 0:02:42.7]} 12. Ne5 {[%clk 0:02:57.9]} 12... Rc8
{[%clk 0:02:38.3]} 13. Qf3 {[%clk 0:02:57.6]} 13... Nf6 {[%clk 0:01:31]} 14. Bf5
{[%clk 0:02:51.1]} 14... Ra8 {[%clk 0:01:22.6]} 15. Rfd1 {[%clk 0:02:50.8]}
15... g6 {[%clk 0:01:20.6]} 16. Bc2 {[%clk 0:02:50.8]} 16... Rc8 {[%clk
0:01:19.7]} 17. Bh6 {[%clk 0:02:49.9]} 17... Re8 {[%clk 0:01:08.1]} 18. Ba4
{[%clk 0:02:49.9]} 18... Rf8 {[%clk 0:00:35.6]} 19. Bxf8 {[%clk 0:02:46.3]}
19... Bxf8 {[%clk 0:00:36.5]} 20. Rac1 {[%clk 0:02:46.5]} 20... a6 {[%clk
0:00:26.7]} 21. h3 {[%clk 0:02:34.8]} 21... b5 {[%clk 0:00:22.5]} 22. Bc2 {[%clk
0:02:33.1]} 22... c4 {[%clk 0:00:22.9]} 23. g4 {[%clk 0:02:19]} 23... Rc7 {[%clk
0:00:04.4]} 24. g5 {[%clk 0:02:16.5]} 24... Ne8 {[%clk 0:00:04.6]} 25. h4 {[%clk
0:02:14.6]} 25... Nd6 {[%clk 0:00:03.3]} 26. Ng4 {[%clk 0:02:15.2]} 26... Bg7
{[%clk 0:00:02.5]} 27. Nf6+ {[%clk 0:02:12.8]} 27... Bxf6 {[%clk 0:00:02.5]} 28.
Qxf6 {[%clk 0:02:13.3]} 28... Qxf6 {[%clk 0:00:02.5]} 29. gxf6 {[%clk
0:02:14.2]} 29... Ne8 {[%clk 0:00:02.8]} 30. e4 {[%clk 0:02:14.4]} 30... dxe4
{[%clk 0:00:02.2]} 31. d5 {[%clk 0:02:15.1]} 31... Nxf6 {[%clk 0:00:02.5]} 32.
d6 {[%clk 0:02:15.7]} 32... Rd7 {[%clk 0:00:02.8]} 33. Rd4 {[%clk 0:02:16.3]}
33... Ne8 {[%clk 0:00:02.4]} 34. Bxe4 {[%clk 0:02:15.8]} 34... Bxe4 {[%clk
0:00:02.2]} 35. Rxe4 {[%clk 0:02:16.5]} 35... Nxd6 {[%clk 0:00:02.9]} 36. Rd4
{[%clk 0:02:17.1]} 36... Kf8 {[%clk 0:00:03.6]} 37. Re1 {[%clk 0:02:17.1]} 37...
a5 {[%clk 0:00:02.4]} 38. Re5 {[%clk 0:02:16.8]} 38... b4 {[%clk 0:00:02.4]} 39.
Rxa5 {[%clk 0:02:17.2]} 39... c3 {[%clk 0:00:02]} 40. bxc3 {[%clk 0:02:16.3]}
40... bxc3 {[%clk 0:00:02.9]} 41. Rc5 {[%clk 0:02:16.7]} 1-0

[Event "Early-Titled-Tuesday-Blitz-February-20-2024"]
[Site "Chess.com"]
[Date "2024.02.20"]
[Round "7"]
[White "GelmanAlexander"]
[Black "m_ezat"]
[Result "1-0"]
[WhiteElo "2746"]
[BlackElo "2516"]
[TimeControl "180+1"]
[EndTime "9:17:52 PST"]
[Termination "GelmanAlexander won by resignation"]

1. d4 {[%clk 0:03:00.9]} 1... Nf6 {[%clk 0:02:59.4]} 2. Nc3 {[%clk 0:02:58.4]}
2... d5 {[%clk 0:02:58.7]} 3. Bf4 {[%clk 0:02:58.5]} 3... c5 {[%clk 0:02:58.6]}
4. e3 {[%clk 0:02:58.7]} 4... cxd4 {[%clk 0:02:59.2]} 5. exd4 {[%clk 0:02:58.8]}
5... a6 {[%clk 0:02:59.8]} 6. Nf3 {[%clk 0:02:58.8]} 6... Bg4 {[%clk 0:02:59.4]}
7. h3 {[%clk 0:02:58.9]} 7... Bxf3 {[%clk 0:02:59.4]} 8. Qxf3 {[%clk 0:02:59.8]}
8... Nc6 {[%clk 0:03:00]} 9. O-O-O {[%clk 0:03:00.4]} 9... e6 {[%clk 0:02:58.5]}
10. g4 {[%clk 0:03:01.1]} 10... Qa5 {[%clk 0:02:54.9]} 11. g5 {[%clk 0:02:57.4]}
11... Nd7 {[%clk 0:02:51.6]} 12. Kb1 {[%clk 0:02:49.6]} 12... Bb4 {[%clk
0:02:48.5]} 13. Ne2 {[%clk 0:02:45.6]} 13... Nb6 {[%clk 0:02:48.4]} 14. Nc1
{[%clk 0:02:39]} 14... Nc4 {[%clk 0:02:39]} 15. Bxc4 {[%clk 0:02:37.2]} 15...
dxc4 {[%clk 0:02:38.6]} 16. d5 {[%clk 0:02:37.1]} 16... Ne7 {[%clk 0:02:21.9]}
17. d6 {[%clk 0:01:41.4]} 17... Nd5 {[%clk 0:01:44.1]} 18. a3 {[%clk 0:01:40.6]}
18... Bc5 {[%clk 0:01:37.8]} 19. Rxd5 {[%clk 0:01:39.2]} 19... exd5 {[%clk
0:01:35.5]} 20. Re1+ {[%clk 0:01:37.9]} 20... Kf8 {[%clk 0:01:33.9]} 21. Qe2
{[%clk 0:01:17.7]} 21... h6 {[%clk 0:01:27.4]} 22. g6 {[%clk 0:01:03.1]} 22...
Qd8 {[%clk 0:01:19.7]} 23. gxf7 {[%clk 0:00:56.3]} 23... Kxf7 {[%clk 0:01:17.7]}
24. Qe6+ {[%clk 0:00:55.7]} 24... Kf8 {[%clk 0:01:17.7]} 25. Re5 {[%clk
0:00:52.2]} 25... g6 {[%clk 0:01:09.7]} 26. Qxg6 {[%clk 0:00:45.1]} 26... Bxd6
{[%clk 0:01:03.6]} 27. Rf5+ {[%clk 0:00:41.3]} 1-0

[Event "Early-Titled-Tuesday-Blitz-February-20-2024"]
[Site "Chess.com"]
[Date "2024.02.20"]
[Round "7"]
[White "AmanteDeMoi"]
[Black "ARMQUEEN"]
[Result "1-0"]
[WhiteElo "2607"]
[BlackElo "2489"]
[TimeControl "180+1"]
[EndTime "9:17:53 PST"]
[Termination "AmanteDeMoi won by resignation"]

1. Nf3 {[%clk 0:02:50.3]} 1... Nf6 {[%clk 0:02:54.7]} 2. e3 {[%clk 0:02:36.5]}
2... g6 {[%clk 0:02:54.2]} 3. b3 {[%clk 0:02:34.6]} 3... Bg7 {[%clk 0:02:54.2]}
4. Bb2 {[%clk 0:02:35.5]} 4... d6 {[%clk 0:02:53.2]} 5. Be2 {[%clk 0:02:34.4]}
5... O-O {[%clk 0:02:52.8]} 6. O-O {[%clk 0:02:34.9]} 6... e5 {[%clk 0:02:52.3]}
7. d4 {[%clk 0:02:35.4]} 7... exd4 {[%clk 0:02:48.6]} 8. Nxd4 {[%clk 0:02:35.7]}
8... Re8 {[%clk 0:02:45.8]} 9. c4 {[%clk 0:02:35.5]} 9... Nbd7 {[%clk
0:02:42.3]} 10. Nc3 {[%clk 0:02:35.5]} 10... Ne5 {[%clk 0:02:42.4]} 11. Qc2
{[%clk 0:02:34.1]} 11... a6 {[%clk 0:02:38.5]} 12. Rad1 {[%clk 0:02:34.2]} 12...
Bd7 {[%clk 0:02:35]} 13. h3 {[%clk 0:02:34]} 13... Nc6 {[%clk 0:02:35]} 14. Nd5
{[%clk 0:02:33.2]} 14... Ne4 {[%clk 0:02:21.1]} 15. Nxc6 {[%clk 0:02:28.6]}
15... bxc6 {[%clk 0:02:19.9]} 16. Bxg7 {[%clk 0:02:28.9]} 16... Kxg7 {[%clk
0:02:19.3]} 17. Qb2+ {[%clk 0:02:29.1]} 17... Kg8 {[%clk 0:02:15.7]} 18. Nf4
{[%clk 0:02:28.6]} 18... Qg5 {[%clk 0:02:12.1]} 19. Bf3 {[%clk 0:02:26.4]} 19...
Re5 {[%clk 0:02:05.2]} 20. Rd4 {[%clk 0:01:57.7]} 20... Nf6 {[%clk 0:01:57]} 21.
Rfd1 {[%clk 0:01:48.6]} 21... Rae8 {[%clk 0:01:55.7]} 22. Qa3 {[%clk 0:01:32.7]}
22... Ra5 {[%clk 0:01:53.6]} 23. Qb2 {[%clk 0:01:21.6]} 23... Rae5 {[%clk
0:01:47.6]} 24. Ne2 {[%clk 0:00:53.2]} 24... Bxh3 {[%clk 0:01:44.7]} 25. Ng3
{[%clk 0:00:53.4]} 25... Bd7 {[%clk 0:01:43.9]} 26. Rf4 {[%clk 0:00:50.7]} 26...
Ng4 {[%clk 0:01:36]} 27. Bxg4 {[%clk 0:00:47.5]} 27... Bxg4 {[%clk 0:01:35.3]}
28. Rdd4 {[%clk 0:00:37.5]} 28... Bd7 {[%clk 0:01:34.8]} 29. Ne4 {[%clk
0:00:34]} 29... Qh5 {[%clk 0:01:33]} 30. Nf6+ {[%clk 0:00:33.9]} 1-0

[Event "Early-Titled-Tuesday-Blitz-February-20-2024"]
[Site "Chess.com"]
[Date "2024.02.20"]
[Round "7"]
[White "rikchessmx"]
[Black "s-dshubin"]
[Result "0-1"]
[WhiteElo "2239"]
[BlackElo "2362"]
[TimeControl "180+1"]
[EndTime "9:17:58 PST"]
[Termination "s-dshubin won by checkmate"]

1. e4 {[%clk 0:01:43.5]} 1... e6 {[%clk 0:02:53.5]} 2. d4 {[%clk 0:01:43.1]}
2... d5 {[%clk 0:02:53.1]} 3. Nc3 {[%clk 0:01:43.9]} 3... a6 {[%clk 0:02:51.9]}
4. Bf4 {[%clk 0:01:41.4]} 4... Nf6 {[%clk 0:02:48.1]} 5. e5 {[%clk 0:01:41.1]}
5... Nfd7 {[%clk 0:02:47.7]} 6. Nce2 {[%clk 0:01:38]} 6... c5 {[%clk 0:02:46.5]}
7. c3 {[%clk 0:01:38]} 7... Nc6 {[%clk 0:02:44]} 8. Qd2 {[%clk 0:01:36.7]} 8...
Qb6 {[%clk 0:02:43.1]} 9. Nf3 {[%clk 0:01:36.5]} 9... cxd4 {[%clk 0:02:40.7]}
10. cxd4 {[%clk 0:01:30.9]} 10... Bb4 {[%clk 0:02:40.8]} 11. Nc3 {[%clk
0:01:31]} 11... O-O {[%clk 0:02:40.6]} 12. Bd3 {[%clk 0:01:29.4]} 12... f6
{[%clk 0:02:38.9]} 13. exf6 {[%clk 0:01:27.4]} 13... Nxf6 {[%clk 0:02:39]} 14.
a3 {[%clk 0:01:21.1]} 14... Be7 {[%clk 0:02:37.4]} 15. O-O {[%clk 0:01:17.5]}
15... Kh8 {[%clk 0:02:29.9]} 16. Na4 {[%clk 0:01:14.2]} 16... Qa7 {[%clk
0:02:21.9]} 17. Bb1 {[%clk 0:01:06.8]} 17... b5 {[%clk 0:02:21.7]} 18. Nc5
{[%clk 0:00:59.1]} 18... Bxc5 {[%clk 0:02:20.7]} 19. dxc5 {[%clk 0:00:59.2]}
19... Qxc5 {[%clk 0:02:19.5]} 20. Rc1 {[%clk 0:00:58.2]} 20... Qb6 {[%clk
0:02:17]} 21. Bd6 {[%clk 0:00:55]} 21... Rd8 {[%clk 0:02:09.9]} 22. Be5 {[%clk
0:00:51.7]} 22... Nxe5 {[%clk 0:02:06.6]} 23. Nxe5 {[%clk 0:00:51.3]} 23... Rf8
{[%clk 0:02:05.6]} 24. Rc6 {[%clk 0:00:42]} 24... Qa7 {[%clk 0:02:02.7]} 25. Qc2
{[%clk 0:00:37.2]} 25... Ne4 {[%clk 0:02:02]} 26. Nd3 {[%clk 0:00:21.5]} 26...
Bd7 {[%clk 0:01:56.7]} 27. Rc7 {[%clk 0:00:20.4]} 27... Qd4 {[%clk 0:01:42.1]}
28. Rxd7 {[%clk 0:00:19.7]} 28... Rac8 {[%clk 0:01:42.6]} 29. Qe2 {[%clk
0:00:17.2]} 29... Nxf2 {[%clk 0:01:41.3]} 30. Qe5 {[%clk 0:00:10.2]} 30... Nh3+
{[%clk 0:01:38.4]} 31. Kh1 {[%clk 0:00:08.8]} 31... Qg1# {[%clk 0:01:39.3]} 0-1

[Event "Early-Titled-Tuesday-Blitz-February-20-2024"]
[Site "Chess.com"]
[Date "2024.02.20"]
[Round "7"]
[White "CarlosjPineror"]
[Black "gm_rashid"]
[Result "1-0"]
[WhiteElo "2577"]
[BlackElo "2454"]
[TimeControl "180+1"]
[EndTime "9:18:11 PST"]
[Termination "CarlosjPineror won by checkmate"]

1. e4 {[%clk 0:03:00.9]} 1... c5 {[%clk 0:02:57.4]} 2. Nf3 {[%clk 0:03:01.1]}
2... d6 {[%clk 0:02:56.1]} 3. d4 {[%clk 0:02:58.4]} 3... cxd4 {[%clk 0:02:57]}
4. Nxd4 {[%clk 0:02:59]} 4... Nf6 {[%clk 0:02:54.8]} 5. Nc3 {[%clk 0:02:59.4]}
5... g6 {[%clk 0:02:50.9]} 6. Be3 {[%clk 0:02:59.3]} 6... Bg7 {[%clk 0:02:49.6]}
7. f3 {[%clk 0:02:59.9]} 7... O-O {[%clk 0:02:48.4]} 8. Bc4 {[%clk 0:03:00.2]}
8... Nc6 {[%clk 0:02:47.3]} 9. Bb3 {[%clk 0:03:00.1]} 9... Bd7 {[%clk
0:02:47.4]} 10. Qd2 {[%clk 0:03:00.4]} 10... Rc8 {[%clk 0:02:47.7]} 11. O-O-O
{[%clk 0:03:00.1]} 11... Ne5 {[%clk 0:02:48.2]} 12. Kb1 {[%clk 0:03:00.5]} 12...
Nc4 {[%clk 0:02:48.2]} 13. Bxc4 {[%clk 0:02:59.7]} 13... Rxc4 {[%clk 0:02:49.1]}
14. h4 {[%clk 0:02:59]} 14... b5 {[%clk 0:02:49.4]} 15. h5 {[%clk 0:02:51.1]}
15... b4 {[%clk 0:02:48.3]} 16. Nce2 {[%clk 0:02:48.8]} 16... Qa5 {[%clk
0:02:32.3]} 17. Bh6 {[%clk 0:02:32.7]} 17... Rfc8 {[%clk 0:02:09.5]} 18. Bxg7
{[%clk 0:02:29.6]} 18... Kxg7 {[%clk 0:02:06.1]} 19. hxg6 {[%clk 0:02:29.6]}
19... fxg6 {[%clk 0:02:05.4]} 20. Qh6+ {[%clk 0:02:27]} 20... Kg8 {[%clk
0:02:01.4]} 21. g4 {[%clk 0:02:21.1]} 21... e5 {[%clk 0:01:51.8]} 22. Nf5 {[%clk
0:01:57.5]} 22... Bxf5 {[%clk 0:01:39.3]} 23. gxf5 {[%clk 0:01:58.4]} 23... Rxc2
{[%clk 0:00:54.1]} 24. fxg6 {[%clk 0:01:53.1]} 24... Rxb2+ {[%clk 0:00:03.9]}
25. Kxb2 {[%clk 0:01:54]} 25... Qa3+ {[%clk 0:00:04.4]} 26. Kb1 {[%clk
0:01:53.5]} 26... Rc2 {[%clk 0:00:04.3]} 27. gxh7+ {[%clk 0:01:48.2]} 27... Kf7
{[%clk 0:00:04]} 28. Qxf6+ {[%clk 0:01:47.4]} 28... Kxf6 {[%clk 0:00:02.9]} 29.
h8=Q+ {[%clk 0:01:47.4]} 29... Ke7 {[%clk 0:00:03.5]} 30. Rh7+ {[%clk
0:01:45.1]} 30... Ke6 {[%clk 0:00:04.1]} 31. Qg8+ {[%clk 0:01:35]} 31... Kf6
{[%clk 0:00:03.7]} 32. Qg7+ {[%clk 0:01:35.6]} 32... Ke6 {[%clk 0:00:03.5]} 33.
Qf7# {[%clk 0:01:36]} 1-0

[Event "Early-Titled-Tuesday-Blitz-February-20-2024"]
[Site "Chess.com"]
[Date "2024.02.20"]
[Round "7"]
[White "AlexPapasimakopoulos"]
[Black "RantomOpening"]
[Result "1-0"]
[WhiteElo "2767"]
[BlackElo "2551"]
[TimeControl "180+1"]
[EndTime "9:18:17 PST"]
[Termination "AlexPapasimakopoulos won by resignation"]

1. d4 {[%clk 0:03:00.9]} 1... d5 {[%clk 0:03:00.2]} 2. c4 {[%clk 0:03:01.4]}
2... e6 {[%clk 0:03:00.5]} 3. Nc3 {[%clk 0:03:02.1]} 3... Nf6 {[%clk 0:02:59.9]}
4. cxd5 {[%clk 0:03:02.9]} 4... exd5 {[%clk 0:03:00.3]} 5. Bg5 {[%clk
0:03:03.5]} 5... c6 {[%clk 0:03:00.7]} 6. e3 {[%clk 0:02:53.6]} 6... Bd6 {[%clk
0:03:00.9]} 7. Bd3 {[%clk 0:02:54.1]} 7... O-O {[%clk 0:03:01.1]} 8. Qc2 {[%clk
0:02:54.7]} 8... h6 {[%clk 0:03:01.8]} 9. Bh4 {[%clk 0:02:55.4]} 9... Re8 {[%clk
0:03:02.4]} 10. Nf3 {[%clk 0:02:55.7]} 10... a5 {[%clk 0:03:03]} 11. O-O {[%clk
0:02:55.7]} 11... Na6 {[%clk 0:03:03]} 12. a3 {[%clk 0:02:56.3]} 12... Nc7
{[%clk 0:03:03.3]} 13. Rab1 {[%clk 0:02:56.4]} 13... Ne6 {[%clk 0:03:03.8]} 14.
b4 {[%clk 0:02:56]} 14... axb4 {[%clk 0:03:03.5]} 15. axb4 {[%clk 0:02:56.9]}
15... b5 {[%clk 0:03:03.9]} 16. e4 {[%clk 0:02:57.5]} 16... Be7 {[%clk
0:02:57.7]} 17. Bxf6 {[%clk 0:02:51.6]} 17... Bxf6 {[%clk 0:02:57.2]} 18. exd5
{[%clk 0:02:52.2]} 18... cxd5 {[%clk 0:02:42.9]} 19. Bxb5 {[%clk 0:02:49.9]}
19... Bd7 {[%clk 0:02:40]} 20. Bxd7 {[%clk 0:02:46.4]} 20... Qxd7 {[%clk
0:02:40.9]} 21. Rfd1 {[%clk 0:02:46.6]} 21... Reb8 {[%clk 0:02:39.7]} 22. Qb3
{[%clk 0:02:46.5]} 22... Nf4 {[%clk 0:02:25.1]} 23. h3 {[%clk 0:02:34]} 23...
Rc8 {[%clk 0:02:16.9]} 24. Rb2 {[%clk 0:02:19.1]} 24... Qf5 {[%clk 0:01:31.8]}
25. Ne2 {[%clk 0:02:16.5]} 25... Ne6 {[%clk 0:01:19.6]} 26. Ng3 {[%clk
0:02:12.2]} 26... Qg6 {[%clk 0:01:11.3]} 27. b5 {[%clk 0:02:12.7]} 27... Rab8
{[%clk 0:01:05.3]} 28. b6 {[%clk 0:02:13.2]} 28... Rb7 {[%clk 0:00:53.7]} 29.
Qxd5 {[%clk 0:02:12.7]} 29... Rcb8 {[%clk 0:00:51]} 30. Rdb1 {[%clk 0:02:12.1]}
30... Nf4 {[%clk 0:00:47.5]} 31. Qe4 {[%clk 0:02:03]} 31... Qxe4 {[%clk
0:00:34.1]} 32. Nxe4 {[%clk 0:02:03.9]} 32... Nd5 {[%clk 0:00:32.2]} 33. Nxf6+
{[%clk 0:01:57.5]} 33... Nxf6 {[%clk 0:00:21.5]} 34. Ne5 {[%clk 0:01:55.5]}
34... Nd5 {[%clk 0:00:18.5]} 35. Nc6 {[%clk 0:01:53.4]} 35... Rc8 {[%clk
0:00:11.4]} 36. Na5 {[%clk 0:01:53.7]} 36... Rd7 {[%clk 0:00:07.4]} 37. b7
{[%clk 0:01:53.9]} 37... Rb8 {[%clk 0:00:03.7]} 38. Nc6 {[%clk 0:01:53.7]} 38...
Kh8 {[%clk 0:00:02.4]} 39. Nxb8 {[%clk 0:01:53.5]} 39... Kg8 {[%clk 0:00:02.4]}
40. Nxd7 {[%clk 0:01:53.7]} 40... Kh8 {[%clk 0:00:02.5]} 41. Ne5 {[%clk
0:01:54.3]} 1-0

[Event "Early-Titled-Tuesday-Blitz-February-20-2024"]
[Site "Chess.com"]
[Date "2024.02.20"]
[Round "7"]
[White "Aygehovit1992"]
[Black "MasterKroket"]
[Result "1-0"]
[WhiteElo "2682"]
[BlackElo "2509"]
[TimeControl "180+1"]
[EndTime "9:18:19 PST"]
[Termination "Aygehovit1992 won by resignation"]

1. e4 {[%clk 0:03:00.9]} 1... e5 {[%clk 0:02:59.5]} 2. Nf3 {[%clk 0:03:00.3]}
2... Nc6 {[%clk 0:03:00]} 3. Bb5 {[%clk 0:03:00.4]} 3... a6 {[%clk 0:02:59.7]}
4. Ba4 {[%clk 0:03:00.5]} 4... Nf6 {[%clk 0:03:00.3]} 5. O-O {[%clk 0:03:00.6]}
5... Be7 {[%clk 0:03:00.8]} 6. d3 {[%clk 0:03:00.1]} 6... b5 {[%clk 0:03:00.5]}
7. Bb3 {[%clk 0:03:00.1]} 7... O-O {[%clk 0:03:00.8]} 8. a4 {[%clk 0:03:00.4]}
8... Rb8 {[%clk 0:03:00.3]} 9. axb5 {[%clk 0:02:59]} 9... axb5 {[%clk
0:03:00.6]} 10. Nc3 {[%clk 0:02:58.9]} 10... d6 {[%clk 0:02:55.8]} 11. h3 {[%clk
0:02:58.8]} 11... Be6 {[%clk 0:02:54.7]} 12. Nd5 {[%clk 0:02:57.5]} 12... Nd7
{[%clk 0:02:41.7]} 13. c3 {[%clk 0:02:50.6]} 13... b4 {[%clk 0:02:32.4]} 14. Bc2
{[%clk 0:02:40.1]} 14... f5 {[%clk 0:02:18.9]} 15. Nxe7+ {[%clk 0:02:31.1]}
15... Qxe7 {[%clk 0:02:09.2]} 16. Ng5 {[%clk 0:02:31]} 16... b3 {[%clk
0:02:02.2]} 17. Bb1 {[%clk 0:02:30.8]} 17... h6 {[%clk 0:02:00.1]} 18. Nxe6
{[%clk 0:02:30.9]} 18... Qxe6 {[%clk 0:01:58.3]} 19. d4 {[%clk 0:02:06.9]} 19...
exd4 {[%clk 0:01:40.2]} 20. exf5 {[%clk 0:02:05.3]} 20... Qd5 {[%clk 0:01:32.5]}
21. Be3 {[%clk 0:01:37.7]} 21... Nde5 {[%clk 0:01:22.2]} 22. cxd4 {[%clk
0:01:23.1]} 22... Nc4 {[%clk 0:01:20.7]} 23. Qg4 {[%clk 0:01:20.4]} 23... Nxe3
{[%clk 0:00:53.4]} 24. fxe3 {[%clk 0:01:21.3]} 24... Rbe8 {[%clk 0:00:38.4]} 25.
f6 {[%clk 0:01:17]} 25... Qg5 {[%clk 0:00:38.6]} 26. Qxg5 {[%clk 0:01:10.8]}
26... hxg5 {[%clk 0:00:38.8]} 27. Bg6 {[%clk 0:00:52.6]} 27... Rxe3 {[%clk
0:00:36.6]} 28. f7+ {[%clk 0:00:53.1]} 28... Kh8 {[%clk 0:00:31.4]} 29. Ra8
{[%clk 0:00:53.7]} 1-0